Cogmind - Beta 14 @@@ ROGUE MODE // 2025.01.16 @ 18:46:12 Player: Mutetourette Result: Self-destructed Performance ------------- Evolutions (5) 2500 Regions Visited (6) 1200 Robots Destroyed (43) 215 Value Destroyed (1000) 1000 Prototype IDs (14) 280 Alien Tech Used (0) 0 Bonus (368) 368 TOTAL SCORE: 5563 Bonus ------- Follower Combat Kills 88 Registered with UFD 300 Friendly Fire -20 Cogmind --------- Core Integrity 940/1000 Matter 300/300 Energy 830/830 System Corruption 2% Temperature Cool (-100) Movement Rolling (110) Ox1 Location -5/Factory Parts ------- > --- POWER (2) -------- Improved Deuterium Engine Improved Deuterium Engine > --- PROPULSION (3) --- Compact Wheel Armored Wheel > --- UTILITY (8) ------ Cryofiber Web Small Storage Unit Energy Well Improved Melee Analysis Suite Improved Melee Analysis Suite Improved Melee Analysis Suite Improved Melee Analysis Suite Core Shielding > --- WEAPON (4) ------- Gatling Laser Gatling Laser Enhanced Coil Gun > --- INVENTORY (8) ---- Subdweller Power Source Improved Treads Improved Heat Sink Improved Field Recycling Unit (0) DRS Beacon (Ready) Botcube Peak State ------------ > --- POWER ------------ Improved Deuterium Engine Improved Deuterium Engine > --- PROPULSION ------- Compact Wheel Armored Wheel > --- UTILITY ---------- Cryofiber Web Small Storage Unit Energy Well Improved Melee Analysis Suite Improved Melee Analysis Suite Improved Melee Analysis Suite Improved Melee Analysis Suite Core Shielding > --- WEAPON ----------- Gatling Laser Gatling Laser Enhanced Coil Gun Ripper > --- INVENTORY -------- Light Ion Engine Spiked Treads Improved Heat Sink Hacking Suite Improved Field Recycling Unit Rocket Launcher DRS Beacon Botcube [Rating: 59] Favorites ----------- Power Improved Deuterium Engine Engine Improved Deuterium Engine Power Core Light Nuclear Core Propulsion Aluminum Leg Treads Light Treads Leg Aluminum Leg Wheel Armored Wheel Utility Small Storage Unit Device Cryofiber Web Storage Small Storage Unit Processor Improved Melee Analysis Suite Protection Scrap Shield Weapon Gatling Laser Energy Gun Gatling Laser Ballistic Gun Battle Rifle Ballistic Cannon Improved Light Cannon Launcher Subdweller Shrapnel Launcher Slashing Weapon Ripper Build | -11 -10 -10 -10 -7 -7 -5 ------- Run | Yrd Mat Min Sub Rec Scr Fac Slots Evolved 10 | . . . . . . 10 Power 1 | . . . . . . 1 Propulsion 1 | . . . . . . 1 Utility 6 | . . . . . . 6 Weapon 2 | . . . . . . 2 Parts Attached 72 | 9 9 7 21 15 . 11 Power 13 | 1 1 2 3 3 . 3 Engine 8 | 1 1 . 2 1 . 3 Core 5 | . . 2 1 2 . . Reactor . | . . . . . . . Propulsion 17 | 3 3 2 4 5 . . Treads 5 | 1 . . 4 . . . Leg 7 | 2 3 2 . . . . Wheel 5 | . . . . 5 . . Hover . | . . . . . . . Flight . | . . . . . . . Utility 14 | 2 1 1 1 3 . 6 Device 4 | 1 1 1 . 1 . . Storage 3 | 1 . . . 1 . 1 Processor 4 | . . . . . . 4 Hackware . | . . . . . . . Protection 3 | . . . 1 1 . 1 Artifact . | . . . . . . . Weapon 28 | 3 4 2 13 4 . 2 Energy Gun 4 | 1 1 . . 2 . . Energy Cannon . | . . . . . . . Ballistic Gun 13 | 2 1 1 6 2 . 1 Ballistic Cannon 4 | . 2 1 1 . . . Launcher 4 | . . . 4 . . . Special Weapon . | . . . . . . . Impact Weapon . | . . . . . . . Slashing Weapon 3 | . . . 2 . . 1 Piercing Weapon . | . . . . . . . Special Melee Weapon . | . . . . . . . Unidentified Prototypes 1 | . . . . . . 1 Parts Lost 9 | . . 2 2 4 . 1 Power 2 | . . . 1 1 . . Propulsion 1 | . . . . 1 . . Utility 3 | . . 1 1 1 . . Weapon 3 | . . 1 . 1 . 1 Highest Loss Streak 4 | . . 1 1 4 . 1 To Critical Strikes . | . . . . . . . Average Slot Usage (%) 92 | . 99 95 84 88 100 80 Engine 10 | . 14 . 13 2 14 9 Core 3 | . . 13 . 10 . . Treads 9 | . . . 28 7 . . Leg 7 | . 28 28 . . . . Wheel 10 | . . . . 20 28 11 Device 7 | . 14 10 . 6 14 5 Storage 8 | . 14 14 . 3 14 9 Protection 5 | . . . 13 9 . 4 Energy Gun 9 | . 3 . . 5 28 11 Ballistic Gun 11 | . 22 1 22 14 . 3 Ballistic Cannon 5 | . 1 26 4 . . . Slashing Weapon 1 | . . . . 7 . 1 Peak Build Rating 59 | 10 10 12 15 20 21 59 Average Rating 15 | 6 8 11 12 17 20 48 On Entrance 12 | . 10 10 11 13 20 21 Naked Turns . | . . . . . . . Heaviest Build 48 | 13 19 19 33 24 24 48 Greatest Support 40 | 20 20 20 40 40 28 28 Greatest Overweight (x) 1 | 1 . . . 1 . 1 Average Overweight (x) . | . . . . . . . Largest Inventory Capacity 8 | 8 8 8 8 8 8 8 Average Capacity 6 | 7 8 8 5 5 8 8 Most Carried 8 | 8 8 8 8 6 8 8 Average Carried 6 | 5 7 7 4 5 6 7 Final Capacity 8 | 8 8 8 5 8 8 8 Final Carried 8 | 8 8 8 5 6 8 6 Class Distribution -------------------- 63% | Mutant 32% | Scavenger-Mutant 3% | Scavenger-Tank Dominant Class ---------------- Mutant | -10/Materials Mutant | -10/Mines Mutant | -10/Subcaves Mutant | -7/Recycling Scavenger-Mutant | -7/Scraptown Scavenger-Tank | -5/Factory Resources | -11 -10 -10 -10 -7 -7 -5 ----------- Run | Yrd Mat Min Sub Rec Scr Fac Matter Collected 1907 | 341 251 264 469 457 . 125 Remotely . | . . . . . . . Salvage Created 1744 | 162 335 46 216 774 . 211 Parts 83 | 11 15 3 20 28 . 6 Haulers Intercepted 1 | . 1 . . . . . Recyclers Shooed 7 | 1 1 . . 5 . . Parts Field Recycled . | . . . . . . . Retrieved Matter . | . . . . . . . Parts Self-Destructed 19 | . . . 19 . . . Prevented . | . . . . . . . Kills | -11 -10 -10 -10 -7 -7 -5 ------- Run | Yrd Mat Min Sub Rec Scr Fac Combat Hostiles Destroyed 23 | . 5 3 12 2 . 1 Melee 1 | . . . 1 . . . Guns 16 | . 5 . 8 2 . 1 Cannons 4 | . . 3 1 . . . AOE 2 | . . . 2 . . . Classes Destroyed 9 | 2 3 . 3 1 . . Tunneler 3 | 3 . . . . . . Hauler 1 | . 1 . . . . . Recycler 11 | 1 1 . . 8 . 1 Turret 2 | . . . 2 . . . Watcher 3 | . 2 . . . . 1 Swarmer 6 | . . . 6 . . . Grunt 8 | . 5 3 . . . . Sentry 3 | . . . . 2 . 1 Subdweller 6 | . . . 6 . . . Best Kill Streak 8 | 2 3 1 2 8 . 1 Combat Bots Only 2 | . 2 1 2 2 . 1 Max Kills in Single Turn 1 | 1 1 1 1 1 . 1 Gunslinging . | . . . . . . . Exploded 1 | . . . 1 . . . Melee 1 | . . . 1 . . . Uniques/NPCs Destroyed . | . . . . . . . Combat | -11 -10 -10 -10 -7 -7 -5 -------- Run | Yrd Mat Min Sub Rec Scr Fac Hostile Shots Fired 257 | . 38 48 111 54 . 6 Missed 86 | . 13 13 44 15 . 1 Damage Taken 2259 | . 305 481 959 300 . 214 Core 251 | . 46 26 59 60 . 60 Absorbed by Shields . | . . . . . . . Redirected to Shielding 5 | . . . . . . 5 Core Remaining (%) 61 | 100 . . . . 23 . Volleys Fired 180 | 28 47 23 52 23 . 7 Largest 3 | 2 2 2 2 2 . 3 Hottest 190 | 40 85 78 65 160 . 190 Shots Fired 357 | 56 94 46 100 44 . 17 Gun 280 | 56 92 . 71 44 . 17 Cannon 62 | . 2 46 14 . . . Launcher 15 | . . . 15 . . . Special . | . . . . . . . Kinetic 321 | 56 86 46 93 35 . 5 Thermal 29 | . 8 . . 9 . 12 Explosive 7 | . . . 7 . . . Electromagnetic . | . . . . . . . Robot Hit Streak 17 | 10 9 10 17 9 . 6 Robot Miss Streak 5 | 5 3 3 3 2 . 2 Penetration Max . | . . . . . . . Secondary Targets 2 | . . . 1 1 . . Max Gunslinging Chain 1 | . . . 1 1 . . Shots Hit Robots 227 | 37 52 30 67 28 . 13 Core Hits 88 | 8 20 6 22 18 . 14 Critical Kills . | . . . . . . . Critical Parts Destroyed 1 | . . . 1 . . . Critical Strikes 9 | . 1 6 2 . . . Burn 1 | . 1 . . . . . Destroy 1 | . . . 1 . . . Blast 7 | . . 6 1 . . . Melee Attacks 15 | . . . 15 . . . Impact . | . . . . . . . Slashing 15 | . . . 15 . . . Piercing . | . . . . . . . Sneak Attacks . | . . . . . . . Combat Hostiles . | . . . . . . . Follow-up Attacks . | . . . . . . . Damage Inflicted 4147 | 302 583 670 1769 508 . 315 Guns 2365 | 302 583 . 657 508 . 315 Cannons 853 | . . 667 186 . . . Explosions 625 | . . . 625 . . . Melee 301 | . . . 301 . . . Ramming 3 | . . 3 . . . . Kinetic 3326 | 302 488 667 1392 391 . 86 Thermal 441 | . 95 . . 117 . 229 Explosive 76 | . . . 76 . . . Electromagnetic . | . . . . . . . Impact . | . . . . . . . Slashing 301 | . . . 301 . . . Piercing . | . . . . . . . Highest Corruption 2 | . . . . . . 2 Average Corruption 2 | . . . . . . 2 Corruption Purged . | . . . . . . . Corruption Blocked . | . . . . . . . Effects 1 | . . . . . . 1 Energy Discharges 1 | . . . . . . 1 Overload Shots . | . . . . . . . Overflow Damage 15 | . . 5 10 . . . Projectiles 5 | . . 5 . . . . Explosions 10 | . . . 10 . . . Melee . | . . . . . . . Knockbacks 5 | . . 3 2 . . . Impact . | . . . . . . . Kinetic 5 | . . 3 2 . . . Secondary . | . . . . . . . Self-Inflicted Damage 8 | . . . 8 . . . Shots 1 | . . . 1 . . . Rammed . | . . . . . . . Targets Rammed 2 | . . 2 . . . . Kicked 2 | . . 2 . . . . Crushed . | . . . . . . . Highest Temperature 320 | . 96 320 1 161 . 96 Average Temperature 92 | . 33 136 1 69 . 42 Received Heat Transfer 702 | . 168 327 111 96 . . Effects 1 | . . 1 . . . . Energy Bleed 1 | . . 1 . . . . Siege Activations . | . . . . . . . Robots Corrupted . | . . . . . . . Combat Hostiles . | . . . . . . . Parts Fried . | . . . . . . . Impact Corruptions . | . . . . . . . Robots Melted . | . . . . . . . Combat Hostiles . | . . . . . . . Parts Melted 2 | . . . . . . 2 Heat Transferred 1096 | . 296 . . 275 . 525 Parts Sabotaged . | . . . . . . . Parts Stolen . | . . . . . . . Parts Stripped . | . . . . . . . Power Chain Reactions . | . . . . . . . Alert | -11 -10 -10 -10 -7 -7 -5 ------- Run | Yrd Mat Min Sub Rec Scr Fac Peak Influence 157 | 20 157 96 . 120 . 96 Initial 120 | . 13 45 . 120 . . Average 65 | 7 82 74 . 67 . 32 Maximum Alert Level . | . . . . . . . Low Security (%) 100 | 100 100 100 . 100 . 100 Level 1 . | . . . . . . . Level 2 . | . . . . . . . Level 3 . | . . . . . . . Level 4 . | . . . . . . . Level 5 . | . . . . . . . High Security . | . . . . . . . Max Security . | . . . . . . . Squads Dispatched 7 | . 4 . . . . 3 Investigation 1 | . 1 . . . . . Extermination . | . . . . . . . Reinforcement 5 | . 3 . . . . 2 Assault . | . . . . . . . Garrison 1 | . . . . . . 1 Intercept . | . . . . . . . Searches Triggered . | . . . . . . . Construction Impeded . | . . . . . . . Haulers Reinforced . | . . . . . . . Active Scanning Responses . | . . . . . . . Cargo Convoy Interrupts . | . . . . . . . Stealth | -11 -10 -10 -10 -7 -7 -5 --------- Run | Yrd Mat Min Sub Rec Scr Fac Distress Signals 2 | . 2 . . . . . Communications Jammed . | . . . . . . . Distress Signals . | . . . . . . . Times Spotted 54 | . 16 9 23 2 . 4 Peak Tracking Total 4 | . 4 3 4 2 . 2 Tactical Retreats 6 | . 1 1 3 . . 1 Traps | -11 -10 -10 -10 -7 -7 -5 ------- Run | Yrd Mat Min Sub Rec Scr Fac Traps Triggered 2 | . 1 . . . . 1 Indirectly . | . . . . . . . Trap Hack Attempts . | . . . . . . . Triggered . | . . . . . . . Disarmed . | . . . . . . . Reprogrammed . | . . . . . . . Reused . | . . . . . . . Traps Extracted . | . . . . . . . Installed . | . . . . . . . Triggered . | . . . . . . . Machines | -11 -10 -10 -10 -7 -7 -5 ---------- Run | Yrd Mat Min Sub Rec Scr Fac Machines Disabled 5 | . . . 3 . . 2 Max in Single Turn 2 | . . . 2 . . 1 Machines Repaired . | . . . . . . . Machines Dismantled . | . . . . . . . Machines Sabotaged . | . . . . . . . Overloaded Fab Kills . | . . . . . . . Hacking | -11 -10 -10 -10 -7 -7 -5 --------- Run | Yrd Mat Min Sub Rec Scr Fac Machines Accessed 6 | . . . 1 . 3 2 Terminals 2 | . . . . . . 2 Fabricators . | . . . . . . . Repair Stations . | . . . . . . . Recycling Units . | . . . . . . . Scanalyzers . | . . . . . . . Garrison Access . | . . . . . . . Total Hacks 19 | . . . 4 . 12 3 Successful 16 | . . . 4 . 12 . Failed 3 | . . . . . . 3 Catastrophic . | . . . . . . . Database Lockouts . | . . . . . . . Manual 3 | . . . . . . 3 Terminals 3 | . . . . . . 3 Fabricators . | . . . . . . . Repair Stations . | . . . . . . . Recycling Units . | . . . . . . . Scanalyzers . | . . . . . . . Garrison Access . | . . . . . . . Terminal Hacks 16 | . . . 4 . 12 . Record 12 | . . . 4 . 8 . Robot Analysis 3 | . . . . . 3 . Derelict Proto ID Bank 1 | . . . . . 1 . Fabricator Hacks . | . . . . . . . Repair Station Hacks . | . . . . . . . Recycling Unit Hacks . | . . . . . . . Scanalyzer . | . . . . . . . Garrison Access Hacks . | . . . . . . . Unauthorized Hacks . | . . . . . . . Terminals . | . . . . . . . Fabricators . | . . . . . . . Repair Stations . | . . . . . . . Recycling Units . | . . . . . . . Scanalyzers . | . . . . . . . Garrison Access . | . . . . . . . Data Cores Recovered . | . . . . . . . Used . | . . . . . . . Hacking Detections 2 | . . . . . . 2 Full Trace Events . | . . . . . . . Feedback Events . | . . . . . . . Feedback Blocked . | . . . . . . . Robot Schematics Acquired . | . . . . . . . Robots Built . | . . . . . . . Authchips . | . . . . . . . Time . | . . . . . . . Total Robot Build Rating . | . . . . . . . Part Schematics Acquired . | . . . . . . . Parts Built . | . . . . . . . Authchips . | . . . . . . . Time . | . . . . . . . Total Part Build Rating . | . . . . . . . Parts Repaired . | . . . . . . . Time . | . . . . . . . Parts Recycled . | . . . . . . . Recycled Matter . | . . . . . . . Retrieved Matter . | . . . . . . . Retrieved Components . | . . . . . . . Parts Scanalyzed . | . . . . . . . Part Schematics Acquired . | . . . . . . . Parts Damaged . | . . . . . . . Bothacking | -11 -10 -10 -10 -7 -7 -5 ------------ Run | Yrd Mat Min Sub Rec Scr Fac Used RIF Installer . | . . . . . . . Robots Hacked . | . . . . . . . Non-combat . | . . . . . . . Combat . | . . . . . . . Robot Hacks Applied . | . . . . . . . Relay Couplers Released . | . . . . . . . Fabnet Peak Effective % . | . . . . . . . Robots Rewired . | . . . . . . . Allies Hacked . | . . . . . . . Hacks Repelled . | . . . . . . . Allies | -11 -10 -10 -10 -7 -7 -5 -------- Run | Yrd Mat Min Sub Rec Scr Fac Total Allies 3 | . . 3 . . . . Largest Group 3 | . . 3 3 . . . Highest-Rated Group 40 | . . 40 37 . . . Highest-Rated Ally 16 | . . 16 16 . . . Total Orders . | . . . . . . . Ally Attacks 34 | . . 25 9 . . . Total Damage 310 | . . 231 79 . . . Kills 6 | . . 5 1 . . . Allies Corrupted . | . . . . . . . Allies Melted . | . . . . . . . Intel | -11 -10 -10 -10 -7 -7 -5 ------- Run | Yrd Mat Min Sub Rec Scr Fac Robot Analysis Total 3 | . . . . . 3 . Derelict Logs Recovered 5 | . . 2 2 . 1 . Drone Launches . | . . . . . . . Drone Recoveries . | . . . . . . . Exploration | -11 -10 -10 -10 -7 -7 -5 ------------- Run | Yrd Mat Min Sub Rec Scr Fac Turns Passed 6631 | 246 706 928 1907 843 1731 270 Spaces Moved 4701 | 127 326 680 871 681 1815 201 Core 14 | 14 . . . . . . Treads 996 | 2 . . 867 127 . . Legs 1121 | 111 326 680 4 . . . Wheels 2570 | . . . . 554 1815 201 Hover . | . . . . . . . Flight . | . . . . . . . Fastest Speed 50 | 50 120 120 120 90 95 95 Average Speed 114 | 113 120 120 159 104 95 106 Slowest Speed 160 | 160 120 120 160 160 95 110 Overloaded Moves . | . . . . . . . Propulsion Burnouts . | . . . . . . . Robots Hopped . | . . . . . . . Cave-ins Triggered . | . . . . . . . Exploration Rate (%) 61 | 7 56 98 67 99 95 7 Regions Visited 6 Branch Regions 4 Pre-discovered Areas 1 | . . . 1 . . . Known Exits Taken . | . . . . . . . Unknown Exits Taken 6 | 1 1 1 1 1 1 . Scrap Searched 9 | . . 1 4 . 4 . Spaces Dug . | . . . . . . . Terrain Destroyed 105 | . 1 2 101 . . 1 Melee . | . . . . . . . Projectile 4 | . 1 2 . . . 1 AOE 101 | . . . 101 . . . Terrain Rammed . | . . . . . . . Walls Destroyed . | . . . . . . . Machines Disabled . | . . . . . . . Actions | -11 -10 -10 -10 -7 -7 -5 --------- Run | Yrd Mat Min Sub Rec Scr Fac Total 5593 | 180 560 747 1271 773 1821 241 Wait 532 | 7 158 30 284 40 5 8 Move 4695 | 126 325 679 870 680 1814 201 Hop . | . . . . . . . Pick Up 43 | 10 7 1 9 7 2 7 Fast Attach 21 | 5 2 2 1 4 . 7 Attach 14 | 2 . 1 3 6 . 2 Detach . | . . . . . . . Swap 37 | 2 7 4 17 5 . 2 Drop 51 | . 14 5 17 8 . 7 Fire 180 | 28 47 23 52 23 . 7 Melee 15 | . . . 15 . . . Ram . | . . . . . . . Kick 2 | . . 2 . . . . Crush . | . . . . . . . Escape Stasis . | . . . . . . . Rewire . | . . . . . . . Trap . | . . . . . . . Miscellaneous 3 | . . . 3 . . . Route ------- -11/Scrapyard -10/Materials (discovered 2 exits: [*Mat] / [*Min]) -10/Mines (discovered 4 exits: [*Mat x2] / [*Exi] / *Sub) -10/Subcaves (discovered 3 exits: [*Mat x2] / *Rec) -7/Recycling (discovered 2 exits: *Fac / *Scr) -7/Scraptown (discovered 2 exits: *Fac x2) -5/Factory (discovered 5 exits: Fac x2 / Upp / Ext x2) History --------- Turn | Location | Event 12 | -11/Scrapyard | Discovered new exit (range 16) 247 | -11/Scrapyard | Entered Materials 317 | -10/Materials | Build established: Mutant 874 | -10/Materials | Discovered new exit (range 5) 944 | -10/Materials | Discovered new exit (range 9) 953 | -10/Materials | Entered Mines 1029 | -10/Mines | Learned Materials trap positions 1120 | -10/Mines | Received a Rocket Launcher from a helpful Derelict 1147 | -10/Mines | Discovered new exit (range 11) 1186 | -10/Mines | Assisted by bots powering up and referring to "LRC-V3" 1207 | -10/Mines | Discovered new exit (range 5) 1345 | -10/Mines | Deemed a non-threat by the Exiles lab entrance 1345 | -10/Mines | Discovered new exit (range 5) 1563 | -10/Mines | Learned Materials emergency access door positions 1864 | -10/Mines | Discovered new exit (range 7) 1881 | -10/Mines | Entered Subcaves 1881 | -10/Subcaves | Accompanied by 3 allies 1949 | -10/Subcaves | Discovered new exit (range 4) 2081 | -10/Subcaves | Visited Clippyterm 2085 | -10/Subcaves | Learned 40 Factory zone layouts 2085 | -10/Subcaves | Learned Factory garrison access intel 2250 | -10/Subcaves | Ambushed by Subdweller buried in earth 2536 | -10/Subcaves | Discovered new exit (range 3) 2693 | -10/Subcaves | Shifting Twisted Machinery released Flamer 3124 | -10/Subcaves | Learned Materials emergency access door positions 3248 | -10/Subcaves | A swath of the cavern ceiling suddenly collapsed 3526 | -10/Subcaves | Shifting Twisted Machinery released Sub. Monowheel 3535 | -10/Subcaves | Shifting Twisted Machinery released Battle Cannon 3682 | -10/Subcaves | Discovered new exit (range 13) 3774 | -10/Subcaves | Core integrity fell below 50% 3788 | -10/Subcaves | Entered Recycling 3994 | -7/Recycling | Discovered new exit (range 6) 4441 | -7/Recycling | Lost 4 parts (1p1n1u1w) 4609 | -7/Recycling | Scanned before Scraplab entrance 4623 | -7/Recycling | Entered Scraplab 4630 | -7/Recycling | Discovered new exit (range 2) 4631 | -7/Recycling | Entered Scraptown 4736 | -7/Scraptown | Build established: Scavenger-Mutant 4870 | -7/Scraptown | Discovered new exit (range 5) 4896 | -7/Scraptown | Scanned Subdweller tech in exchange for log data 4899 | -7/Scraptown | Learned location of 2 exits from Lower Caves 4930 | -7/Scraptown | Heard Great Nut preacher, LISTEN AND RECITE! 4941 | -7/Scraptown | Visited The Evicted 4971 | -7/Scraptown | Visited Spacefarers 5020 | -7/Scraptown | Visited Science Testing Area 5256 | -7/Scraptown | Visited Cave Peace 5321 | -7/Scraptown | Visited Assassins FH 5349 | -7/Scraptown | Visited Junk Repository 5375 | -7/Scraptown | Visited UFD Registry 5375 | -7/Scraptown | Registered with UFD as "Wavemod" 5394 | -7/Scraptown | Visited Comm Corps 5480 | -7/Scraptown | Visited Science Guys 5528 | -7/Scraptown | Visited Curators Association 5557 | -7/Scraptown | Visited Junk Cannon Lab 5585 | -7/Scraptown | Visited Analyses Database 5606 | -7/Scraptown | Visited Infowarlord's Domain 5625 | -7/Scraptown | Visited Derelict Rescue Squad 5630 | -7/Scraptown | Found DRS Beacon 5662 | -7/Scraptown | Visited Research Penetration Think Tank 5682 | -7/Scraptown | Visited Abandonware Association 5689 | -7/Scraptown | Learned abandonware demo "OVRCLOCK.EXE" 5852 | -7/Scraptown | Visited Scrap Suit Storage 5886 | -7/Scraptown | Visited Botcube Research 5892 | -7/Scraptown | Found Botcube 6048 | -7/Scraptown | Discovered new exit (range 5) 6362 | -7/Scraptown | Entered Factory 6362 | -5/Factory | Evolved 10 slots: Power x1, Propulsion x1, Utility x6, Weapon x2 6363 | -5/Factory | Identified exit to Upper Caves 6363 | -5/Factory | Identified exit to Factory 6363 | -5/Factory | Identified exit to Extension 6364 | -5/Factory | Loaded intel: 4 garrison access locations 6366 | -5/Factory | Garrison activated, responded to threat 6632 | -5/Factory | Self-destructed Last Messages --------------- 06594_ Y-64 Sentinel destroyed. 06600_ Dropped Hacking Suite. 06600_ Acquired Drone Bay. 06609_ R-10 Processor collects Imp. Treads. 06613_ R-10 Processor collects Wave Gun. 06616_ R-10 Processor collects Imp. Treads. 06619_ Slug penetrates R-10 Processor. 06619_ R-10 Processor destroyed. 06620_ ALERT: Suspicious intruders detected, dispatching Specialist reinforcements to area. 06624_ Acquired 91 matter. 06624_ R-10 Processor collects Hacking Suite. 06625_ Dropped Spk. Treads. 06625_ Dropped Lgt. Deuterium Engine. 06626_ Dropped Rocket Launcher. 06626_ Dropped Drone Bay. 06629_ Acquired Imp. Treads. 06631_ Acquired Sub. Power Source. 06631_ R-10 Processor collects Lgt. Deuterium Engine. Map ----- +----------------------------------------------------+ | ???????????????????""" # #????????????? | | """ """ #?????# # #????????????? | | "" "" #?????# # #????????????? | | "" "" #?????########+##### #????????????? | | #????????# # #????????????? | | #######+#????????# ###+################??? | | #????# #????????# #??? | | #????# #????????# #??? | | #????# #????????# ! #??? | | #????# #????????# #??? | | #????# #????????# k #??? | | ###### ####?????# ###+########## #??? | | + #?????# # ##### #### | | ######### #?????## ## "" # ## | | #???????# ######## R ## """ ## ## | | #???????# ## R" ## ## | | #???????# ## """ ## ## | | #????#### T# ## ## | | ##????# # ##/########### | | ?###### ##### ##### ## ## # | | ?# # #???# #???# R]## ## """ # """ | | ?# # #???# #???# =############ """ # """ | | ?# # #???#+###########[#??????????# R" # """ | | ?# # #???# #?#%#??????????# """ # """ | | ?# # #???# ""G"" ###%###????????# "" # """ | | ?# # #???# " " # *@ =######???# # """ | | ????????????# # !== #???# # """ | | ????????????# x " #???# # | | ????????????# # ########+######## | | ????????????# # #? | | ????????????# ! ##### #? | | ????????????#########+#???# #? | | ????????????????????# #???# #? | | ???????????????????## #???# """ """ """ #? | | ?????????????????? ##### """ """ """ ## | | ??????????????H?? """ """ "%% | | ????????????????? % ##### | | ???????????????????##### #???? | | ??????????????????? + #???? | | ??????????????????? #### #???? | | ??????????????????? ####+######## #?### | | ??????????????????? ## ## ### | | ??????????????????? ## ## / | | ??????????????????? ## ###### # | | ???????????????????###### #????# # | | ???????????????????#######+##+#####????# " | | ??????????????????? #????????######### | | ???????????????????############????????????????# | | ???????????????????????????????????????????????# | | ???????????????????????????????????????????????# | +----------------------------------------------------+ Best States ------------- Heat Dissipation 40 Energy Generation 27 Energy Capacity 830 Matter Stores 300 Matter Capacity 300 Sight Range 16 Terrain Scan Range 16 Terrain Scan Density 10 Base Temperature (-) 100 Armor Coverage 800 Core Shielding 20 Evasion (%) 55 Melee Accuracy 24 Recoil Reduction 2 Item Schematics ----------------- None Robot Schematics ------------------ None Fabricated ------------ Nothing Alien Tech Used ----------------- None Achievements -------------- None Challenges ------------ None Game ------ Seed TerrainReactionAutogun Manual? 0 Play Time 00:54:35 Cumulative 26.3 hours Start 2024.10.30 @ 11:04:40 End 2025.01.16 @ 18:46:12 Sessions 5 Manual Loads 0 Difficulty Rogue Special Mode None Game No. 62 Rogue 62 Adventurer 0 Explorer 0 Win Type - Total 0 Types 0/0/0/0/0/0/0/0/0 Lore% 35 Gallery% 33 Achievement% 31 Wizard Run 0 Options --------- Layout 1 ASCII 0 Keyboard 0 Movement Mouse Keybinds 0 Fullscreen 1 Font 24/Smallcaps Map View 50x35 Zoom Use 0% Tactical HUD 1 Map Filters NONE Filters NONE Steam 1 RUN: e1503b7f-75f1-43b3-a650-492288ff9998